bitfinex/quotes_SOLUSD_20250821
["timestamp","ask_amount","ask_price","bid_price","bid_amount"]
[1755735526986,41.77895341,187.57,187.56,0.71]
[1755735527481,41.77895341,187.57,187.53,5.33243553]
[1755735527787,4.13895341,187.56,187.54,0.71]
[1755735527994,37.62,187.55,187.54,6.04219579]
[1755735529492,4.13895341,187.57,187.54,6.04219579]
[1755735529669,37.62,187.56,187.54,5.33219579]
[1755735529869,37.62,187.56,187.55,0.71]
[1755735530181,4.13895341,187.57,187.55,0.71]
[1755735530382,37.6,187.56,187.54,5.33219579]
[1755735530784,41.73895341,187.56,187.52,9.47171791]
[1755735531098,13.59559401,187.59,187.54,0.71]
[1755735531298,41.73895341,187.58,187.54,0.71]
[1755735532096,37.6,187.57,187.56,9.47058062]
[1755735532306,37.6,187.57,187.56,10.18058062]
[1755735532679,13.59559401,187.62,187.56,10.18058062]
[1755735532875,37.6,187.61,187.57,0.71]
[1755735533080,37.6,187.61,187.58,0.67]
[1755735533276,4.13895341,187.6,187.58,0.67]
[1755735533481,37.6,187.59,187.58,0.67]
[1755735534794,37.6,187.59,187.57,0.67]
[1755735535885,37.6,187.59,187.58,0.67]
[1755735536088,37.6,187.59,187.57,4.13895341]
[1755735536402,37.6,187.59,187.57,0.67]
[1755735536903,37.6,187.59,187.58,0.67]
[1755735537086,37.6,187.59,187.57,0.67]
[1755735537285,37.6,187.59,187.56,4.13895341]
[1755735537487,37.6,187.59,187.56,4.80895341]
[1755735538408,42.35895341,187.58,187.54,89.30114607]
[1755735538708,37.56,187.57,187.54,10.17114607]
[1755735538914,37.56,187.57,187.54,4.83895341]
[1755735539404,37.56,187.57,187.55,4.80895341]
[1755735539704,37.56,187.57,187.56,0.67]
[1755735540507,37.56,187.57,187.54,4.83895341]
[1755735540696,4.13895341,187.56,187.54,0.03]
[1755735540899,55.31454742,187.55,187.54,0.03]
[1755735541092,59.83350083,187.55,187.54,0.03]
[1755735541292,59.9756624,187.55,187.54,0.03]
[1755735543703,2.137723,187.61,187.54,0.7]
[1755735543910,0.06,187.62,187.56,4.13895341]
[1755735544217,41.77895341,187.6,187.57,0.67]
[1755735545593,4.13895341,187.59,187.57,0.67]
[1755735545892,37.7,187.58,187.57,0.67]
[1755735546412,37.7,187.58,187.55,4.80895341]
[1755735546608,37.7,187.58,187.56,0.67]
[1755735546815,41.83895341,187.58,187.56,0.67]
[1755735548113,41.81895341,187.57,187.54,0.03]
[1755735548329,41.81895341,187.57,187.54,0.7]
[1755735550203,41.81895341,187.57,187.54,0.7]
[1755735550713,37.68,187.57,187.54,0.7]
[1755735551017,41.81895341,187.57,187.54,6.03219012]
[1755735551396,4.13895341,187.56,187.54,0.03]
[1755735551704,37.66,187.55,187.54,0.03]
[1755735551911,39.59559401,187.53,187.52,0.03]
[1755735552114,85.51350083,187.53,187.43,0.67]
[1755735552301,4.13895341,187.47,187.43,0.67]
[1755735552485,37.96,187.46,187.43,4.13895341]
[1755735552692,37.96,187.46,187.44,0.67]
[1755735554223,37.96,187.46,187.4,0.67]
[1755735554420,37.96,187.46,187.4,5.33617929]
[1755735554421,4.13895341,187.44,187.4,5.33617929]
[1755735554589,14.25559401,187.49,187.4,5.33617929]
[1755735554590,38.12,187.43,187.41,0.67]
[1755735554788,38.12,187.43,187.42,0.67]
[1755735555421,0.66,187.51,187.43,26.0]
[1755735555584,38.12,187.5,187.46,4.13895341]
[1755735555788,16.035492,187.59,187.49,4.13895341]
[1755735556087,4.13895341,187.6,187.51,4.13895341]
[1755735556088,13.59559401,187.57,187.51,4.13895341]
[1755735556288,13.59559401,187.57,187.52,4.80895341]
[1755735556483,42.33895341,187.56,187.52,0.67]
[1755735556718,13.59559401,187.55,187.49,0.67]
[1755735556927,4.13895341,187.53,187.49,0.67]
[1755735557097,38.22,187.52,187.49,0.67]
[1755735557291,42.35895341,187.52,187.48,4.13895341]
[1755735557488,38.22,187.52,187.49,0.67]
[1755735557811,38.22,187.51,187.5,5.33333333]
[1755735558019,38.22,187.51,187.5,6.00333333]
[1755735559407,4.13895341,187.54,187.5,6.00333333]
[1755735559604,38.22,187.53,187.51,4.80895341]
[1755735559806,38.22,187.53,187.52,0.67]
[1755735560523,38.22,187.53,187.5,10.14228674]
[1755735560719,42.35895341,187.53,187.49,9.47253318]
[1755735561023,42.35895341,187.53,187.49,10.14253318]
[1755735561228,4.13895341,187.51,187.47,6.0041868]
[1755735561397,38.2,187.5,187.47,6.0041868]
[1755735561596,38.2,187.5,187.48,0.67]
[1755735562222,38.2,187.5,187.47,5.3341868]
[1755735562396,38.2,187.5,187.48,6.00377138]
[1755735564403,38.2,187.5,187.48,10.14272479]
[1755735564599,0.06,187.56,187.49,4.84895341]
[1755735564911,0.06,187.56,187.46,93.13569087]
[1755735564912,4.13895341,187.52,187.46,111.844197]
[1755735565112,4.13895341,187.49,187.46,6.044197]
[1755735565326,38.18,187.48,187.46,6.044197]
[1755735565628,42.31895341,187.48,187.45,26.0]
[1755735565806,38.18,187.48,187.46,0.71]
[1755735566502,42.31895341,187.48,187.45,5.33461071]
[1755735567525,42.31895341,187.48,187.47,26.0]
[1755735568024,42.31895341,187.48,187.45,31.33461071]
[1755735568410,42.31895341,187.48,187.45,26.0]
[1755735568608,4.13895341,187.46,187.45,26.0]
[1755735569216,4.13895341,187.46,187.43,6.04504916]
[1755735569524,4.13895341,187.44,187.42,0.03]
[1755735569731,42.37895341,187.43,187.42,0.03]
[1755735569907,38.24,187.43,187.42,0.03]
[1755735570113,42.37895341,187.43,187.42,0.03]
[1755735570323,38.24,187.43,187.42,0.03]
[1755735570924,42.37895341,187.43,187.42,0.03]
[1755735571105,38.24,187.43,187.42,0.03]
[1755735571811,4.13895341,187.45,187.42,0.74]
[1755735572025,38.24,187.43,187.42,0.74]
[1755735572718,38.24,187.43,187.42,6.07560986]
[1755735572915,38.24,187.43,187.42,5.36560986]
[1755735573309,38.24,187.43,187.42,6.07560986]
[1755735574105,38.24,187.43,187.42,10.21456327]
[1755735575016,38.22,187.43,187.42,6.07560986]
[1755735575204,0.72,187.51,187.43,0.28432314]
[1755735575399,38.2,187.5,187.47,4.13895341]
[1755735575626,38.2,187.5,187.47,0.71]
[1755735575836,42.33895341,187.5,187.46,4.13895341]
[1755735576041,42.33895341,187.5,187.46,4.84895341]
[1755735576206,4.13895341,187.5,187.46,4.84895341]
[1755735576406,38.22,187.49,187.46,4.84895341]
[1755735576726,38.22,187.49,187.46,10.18315391]
[1755735577030,4.19895341,187.52,187.48,4.13895341]
[1755735577220,4.19895341,187.52,187.47,4.84895341]
[1755735577221,42.35895341,187.51,187.47,4.84895341]
[1755735577411,4.13895341,187.49,187.45,4.13895341]
[1755735577607,38.24,187.48,187.46,4.13895341]
[1755735577809,38.24,187.48,187.46,4.84895341]
[1755735578133,38.24,187.47,187.46,0.71]
[1755735578630,38.24,187.47,187.46,4.84895341]
[1755735579510,38.24,187.47,187.46,9.47342476]
[1755735579737,38.24,187.47,187.45,5.33475077]
[1755735579910,0.72,187.49,187.45,9.47370418]
[1755735580109,42.35895341,187.48,187.42,26.03]
[1755735580333,4.13895341,187.45,187.42,0.03]
[1755735580537,38.22,187.44,187.42,0.03]
[1755735580830,38.22,187.44,187.42,5.36556083]
[1755735581035,38.22,187.44,187.43,4.84895341]
[1755735581236,38.22,187.44,187.42,9.50451424]
[1755735581440,38.22,187.44,187.42,0.03]
[1755735582437,38.22,187.44,187.42,4.16895341]
[1755735582611,38.94,187.44,187.42,0.03]
[1755735582930,38.26,187.43,187.42,0.03]
[1755735583240,38.26,187.43,187.42,6.07560986]
[1755735583738,4.13895341,187.46,187.42,10.21456327]
[1755735583911,38.24,187.45,187.42,10.21456327]
[1755735584107,38.24,187.45,187.42,5.36560986]
[1755735584312,38.24,187.45,187.42,9.50456327]
[1755735584540,38.24,187.45,187.42,4.16895341]
[1755735584840,38.24,187.45,187.42,0.03]
[1755735584841,38.96,187.45,187.42,0.03]
[1755735585032,43.09895341,187.45,187.42,0.03]
[1755735586030,38.96,187.45,187.42,0.03]
[1755735586327,43.09895341,187.45,187.42,0.03]
[1755735586944,4.85895341,187.45,187.42,0.03]
[1755735587143,38.24,187.44,187.42,0.03]
[1755735587958,43.09895341,187.44,187.42,0.03]
[1755735588341,38.2,187.43,187.42,0.03]
[1755735591753,38.92,187.43,187.42,0.03]
[1755735592556,43.05895341,187.43,187.42,0.03]
[1755735595358,38.92,187.43,187.42,0.03]
[1755735595558,42.33895341,187.43,187.42,0.03]
[1755735595946,43.00895341,187.43,187.42,0.03]
[1755735597064,56.60454742,187.43,187.42,0.03]
[1755735597264,52.46559401,187.43,187.42,0.03]
[1755735597440,56.60454742,187.43,187.42,0.03]
[1755735599136,52.46559401,187.43,187.42,0.03]
[1755735599543,56.60454742,187.43,187.42,0.03]
[1755735600564,60.74350083,187.43,187.42,0.03]
[1755735601438,86.74350083,187.43,187.42,0.03]
[1755735602266,40.26559401,187.43,187.42,0.03]
[1755735602470,38.12,187.43,187.42,0.03]
[1755735602645,42.25895341,187.43,187.42,0.03]
[1755735602843,2.198866,187.52,187.42,0.69]
[1755735603036,4.13895341,187.48,187.43,4.13895341]
[1755735603234,4.13895341,187.46,187.44,0.66]
[1755735603450,42.47895341,187.45,187.42,0.69]
[1755735603748,42.47895341,187.45,187.42,0.03]
[1755735603749,4.13895341,187.44,187.42,0.03]
[1755735603944,38.34,187.43,187.42,0.03]
[1755735604143,4.13895341,187.44,187.42,0.03]
[1755735604350,4.13895341,187.46,187.42,10.16456327]
[1755735604646,38.34,187.45,187.43,0.66]
[1755735604848,38.34,187.45,187.44,0.66]
[1755735606053,38.34,187.45,187.42,5.36560986]
[1755735606260,38.34,187.45,187.43,0.66]
[1755735606949,42.47895341,187.45,187.43,0.66]
[1755735607268,42.47895341,187.45,187.42,0.03]
[1755735607470,42.47895341,187.45,187.42,0.69]
[1755735608874,4.13895341,187.45,187.42,0.69]
[1755735609057,38.3,187.44,187.42,0.69]
[1755735609258,4.13895341,187.45,187.42,0.69]
[1755735609451,38.28,187.43,187.42,0.69]
[1755735610059,38.28,187.43,187.42,4.82895341]
[1755735610666,38.28,187.43,187.42,0.69]
[1755735610867,38.28,187.43,187.42,4.82895341]
[1755735611467,38.28,187.43,187.42,10.16456327]
[1755735611657,38.28,187.43,187.42,6.02560986]
[1755735611855,38.28,187.43,187.42,10.16456327]
[1755735612861,38.24,187.43,187.42,10.16456327]
[1755735613059,38.24,187.43,187.42,6.02560986]
[1755735613681,4.13895341,187.46,187.42,10.16456327]
[1755735613881,38.24,187.45,187.42,0.03]
[1755735614265,42.37895341,187.45,187.42,0.03]
[1755735614459,38.22,187.44,187.42,0.03]
[1755735615083,4.80895341,187.43,187.42,0.03]
[1755735615781,43.02895341,187.43,187.42,0.03]
[1755735617286,38.22,187.43,187.42,0.03]
[1755735617473,42.35895341,187.43,187.42,0.03]
[1755735617876,43.02895341,187.43,187.42,0.03]
[1755735618787,38.22,187.43,187.42,0.03]
[1755735619100,42.35895341,187.43,187.42,0.03]
[1755735619783,4.13895341,187.43,187.42,0.03]
[1755735620085,42.31895341,187.43,187.42,0.03]
[1755735620872,4.13895341,187.43,187.42,0.03]
[1755735621090,42.29895341,187.43,187.42,0.03]
[1755735622897,4.13895341,187.43,187.42,0.03]
[1755735623097,42.29895341,187.43,187.42,0.03]
[1755735624875,38.16,187.43,187.42,0.03]
[1755735625184,42.29895341,187.43,187.42,0.03]
[1755735625777,38.16,187.43,187.42,0.03]
[1755735625988,42.29895341,187.43,187.42,0.03]
[1755735626194,38.16,187.43,187.42,0.68]
[1755735626476,0.14216157,187.47,187.42,0.68]
[1755735626673,4.13895341,187.45,187.42,0.68]
[1755735626876,38.1,187.44,187.42,0.68]
[1755735627196,38.1,187.44,187.43,0.65]
[1755735627993,4.13895341,187.45,187.43,0.65]
[1755735628201,38.1,187.44,187.43,0.65]
[1755735628899,38.1,187.44,187.42,0.03]
[1755735629118,38.1,187.44,187.43,0.65]
[1755735630376,4.13895341,187.45,187.43,0.65]
[1755735630582,38.08,187.44,187.43,0.65]
[1755735631196,38.08,187.44,187.42,0.68]
[1755735631798,4.13895341,187.45,187.42,0.68]
[1755735632001,38.04,187.43,187.42,0.68]
[1755735632793,38.04,187.43,187.42,0.03]
[1755735633498,38.04,187.43,187.42,0.68]
[1755735634199,42.17895341,187.43,187.42,0.03]
[1755735634402,38.04,187.43,187.42,0.03]
[1755735634605,42.17895341,187.43,187.42,0.68]
[1755735634815,42.17895341,187.43,187.42,0.03]
[1755735634816,38.04,187.43,187.42,0.03]
[1755735634984,38.04,187.43,187.42,0.68]
[1755735635182,38.02,187.43,187.42,0.68]
[1755735635683,0.65,187.5,187.42,10.1543434]
[1755735635888,0.65,187.5,187.45,4.13895341]
[1755735635889,38.06,187.49,187.45,4.13895341]
[1755735636105,38.06,187.49,187.46,0.65]
[1755735636278,42.19895341,187.49,187.47,0.65]
[1755735637314,42.19895341,187.49,187.43,5.33532518]
[1755735637498,42.19895341,187.49,187.46,0.65]
[1755735638690,42.19895341,187.49,187.47,0.65]
[1755735639007,38.04,187.48,187.47,0.65]
[1755735641117,38.02,187.48,187.47,0.65]
[1755735643019,38.02,187.48,187.47,5.9841868]
[1755735643722,38.02,187.48,187.46,5.33440929]
[1755735643917,38.02,187.48,187.46,9.4733627]
[1755735644124,38.02,187.48,187.46,10.1233627]
[1755735644417,4.78895341,187.51,187.47,10.1228968]
[1755735644617,37.98,187.5,187.47,10.1228968]
[1755735645620,37.98,187.5,187.47,0.65]
[1755735645805,38.63,187.5,187.47,0.65]
[1755735646494,4.13895341,187.48,187.43,89.79658823]
[1755735646693,42.11895341,187.47,187.43,89.79658823]
[1755735647216,37.98,187.47,187.44,4.78895341]
[1755735647598,37.98,187.47,187.44,10.12396851]
[1755735648100,0.65,187.46,187.45,26.0]
[1755735648500,42.11895341,187.47,187.46,26.0]
[1755735649004,42.76895341,187.47,187.43,94.48184091]
[1755735649202,42.11895341,187.47,187.46,26.0]
[1755735649506,42.11895341,187.47,187.44,26.0]
[1755735650024,42.76895341,187.47,187.44,26.0]
[1755735650220,37.98,187.47,187.44,26.0]
[1755735650425,37.98,187.47,187.44,26.65]
[1755735651312,37.98,187.47,187.44,30.78895341]
[1755735651506,37.98,187.47,187.44,26.65]
[1755735652119,37.98,187.47,187.46,0.03]
[1755735652807,38.63,187.47,187.46,0.03]
[1755735656718,42.76895341,187.47,187.46,0.03]
[1755735658299,42.11895341,187.47,187.46,0.03]
[1755735658519,37.98,187.47,187.46,0.03]
[1755735660234,37.98,187.47,187.46,0.74]
[1755735661336,13.59559401,187.5,187.46,0.74]
[1755735661531,37.86,187.49,187.46,4.87895341]
[1755735661732,37.86,187.49,187.47,0.71]
[1755735662545,37.86,187.49,187.46,0.03]
[1755735662746,37.86,187.49,187.46,0.74]
[1755735663541,42.38895341,187.49,187.46,0.74]
[1755735663733,38.25,187.49,187.46,0.03]
[1755735664038,17.87670899,187.47,187.46,0.03]
[1755735664211,55.71670899,187.47,187.46,0.03]
[1755735664414,56.10670899,187.47,187.46,0.03]
[1755735666015,2.138752,187.51,187.46,0.03]
[1755735666238,13.59559401,187.49,187.46,4.87895341]
[1755735666435,37.94,187.48,187.46,4.87895341]
[1755735669146,37.94,187.48,187.46,4.16895341]
[1755735669346,37.94,187.48,187.46,0.03]
[1755735670220,13.59559401,187.51,187.47,4.84895341]
[1755735670442,13.59559401,187.51,187.47,4.13895341]
[1755735670631,37.9,187.5,187.48,4.84895341]
[1755735671221,37.9,187.49,187.48,0.71]
[1755735672034,37.9,187.49,187.48,10.18285569]
[1755735672237,13.65559401,187.52,187.48,10.18285569]
[1755735672543,37.92,187.51,187.49,4.84895341]
[1755735672847,0.06,187.52,187.5,4.84895341]
[1755735673041,0.06,187.52,187.51,4.13895341]
[1755735673234,37.98,187.52,187.5,4.13895341]
[1755735673436,37.98,187.52,187.5,4.84895341]
[1755735673628,0.76,187.52,187.46,0.03]
[1755735673828,37.92,187.51,187.47,6.0441868]
[1755735674055,37.92,187.51,187.48,4.84895341]
[1755735674349,37.92,187.51,187.48,4.13895341]
[1755735674536,37.92,187.51,187.49,0.71]
[1755735675046,37.92,187.51,187.49,4.84895341]
[1755735675252,37.92,187.51,187.49,0.71]
[1755735675543,0.06,187.52,187.5,4.84895341]
[1755735675750,0.06,187.52,187.51,4.84895341]
[1755735675926,37.96,187.52,187.51,0.71]
[1755735676326,38.0,187.52,187.51,4.84895341]
[1755735677047,38.0,187.52,187.51,10.18200231]
[1755735678234,0.06,187.52,187.51,10.18200231]
[1755735678434,37.98,187.52,187.51,10.18200231]
[1755735679452,0.06,187.52,187.51,10.18200231]
[1755735682532,0.06,187.52,187.51,10.46632545]
[1755735683168,0.06,187.52,187.51,14.66849781]
[1755735683353,0.06,187.52,187.51,10.46632545]
[1755735683554,0.06,187.52,187.51,6.32737204]
[1755735683767,0.06,187.52,187.51,10.46632545]
[1755735684067,0.06,187.52,187.51,6.32737204]
[1755735684255,0.06,187.52,187.51,10.46632545]
[1755735684838,0.06,187.54,187.53,26.28432314]
[1755735685045,0.06,187.54,187.53,30.42327655]
[1755735685249,0.06,187.54,187.53,31.14327655]
[1755735686052,0.06,187.54,187.53,36.47575668]
[1755735687169,0.06,187.54,187.53,32.33680327]
[1755735687380,0.06,187.54,187.53,36.47575668]
[1755735688266,0.06,187.54,187.53,116.27575668]
[1755735694978,0.06,187.56,187.55,8.56222996]
[1755735695280,0.06,187.56,187.55,89.08222996]
[1755735695977,0.06,187.56,187.55,94.41414145]
[1755735696283,0.06,187.56,187.55,86.13623463]
[1755735696478,0.06,187.56,187.55,90.27518804]
[1755735699176,0.06,187.56,187.55,94.41414145]
[1755735699562,0.06,187.56,187.55,132.19414145]
[1755735699888,0.78,187.62,187.55,145.52392017]
[1755735700094,0.78,187.62,187.6,5.3304904]
[1755735702376,0.06,187.62,187.6,5.3304904]
[1755735702578,0.06,187.62,187.61,0.72]
[1755735702885,0.06,187.62,187.6,9.46944381]
[1755735703393,0.06,187.62,187.6,10.18944381]
[1755735704063,0.06,187.62,187.61,4.85895341]
[1755735704259,0.06,187.62,187.61,0.72]
[1755735704494,0.06,187.62,187.61,10.47348282]
[1755735704699,0.06,187.64,187.63,26.0]
[1755735704993,0.06,187.64,187.63,4.13895341]
[1755735705361,0.06,187.64,187.63,4.85895341]
[1755735705581,0.06,187.64,187.63,36.18859152]
[1755735713794,0.06,187.64,187.63,35.75291466]
[1755735714575,0.06,187.64,187.63,36.44291466]
[1755735714793,0.06,187.64,187.63,31.61396125]
[1755735714995,0.06,187.64,187.63,116.24291466]
[1755735721286,0.06,187.64,187.63,112.10396125]
[1755735721488,0.06,187.64,187.63,116.24291466]
[1755735722207,0.06,187.64,187.63,115.55291466]
[1755735722871,0.78,187.64,187.63,115.55291466]
[1755735723079,4.91895341,187.64,187.6,5.36040954]
[1755735723300,4.13895341,187.62,187.6,5.36040954]
[1755735723602,4.85895341,187.61,187.6,0.03]
[1755735724405,0.72,187.61,187.6,0.03]
[1755735725799,4.85895341,187.61,187.6,0.03]
[1755735727216,22.59350083,187.61,187.6,0.03]
[1755735727983,22.7356624,187.61,187.6,0.03]
[1755735730596,22.7356624,187.61,187.58,0.03]
[1755735730781,43.73454742,187.59,187.58,0.03]
[1755735731310,44.45454742,187.59,187.58,0.03]
[1755735732696,82.17454742,187.59,187.58,0.03]
[1755735735914,4.13895341,187.59,187.58,0.03]
[1755735736093,4.19895341,187.64,187.58,4.85895341]
[1755735736291,37.72,187.63,187.6,4.13895341]
[1755735736496,37.72,187.63,187.61,0.69]
[1755735737020,37.72,187.62,187.6,4.13895341]
[1755735737512,37.72,187.62,187.6,4.82895341]
[1755735738812,37.72,187.62,187.6,0.69]
[1755735739887,4.13895341,187.63,187.6,0.69]
[1755735740091,37.72,187.62,187.6,0.69]
[1755735740301,37.72,187.62,187.6,4.82895341]
[1755735740704,37.72,187.62,187.6,0.69]
[1755735741394,37.72,187.62,187.6,4.82895341]
[1755735741596,37.72,187.62,187.6,4.13895341]
[1755735741793,37.72,187.62,187.61,0.69]
[1755735742123,37.72,187.62,187.6,4.13895341]
[1755735742422,37.72,187.62,187.6,4.82895341]
[1755735742911,37.72,187.62,187.6,0.69]
[1755735743106,37.72,187.62,187.58,0.03]
[1755735743107,4.13895341,187.61,187.58,0.03]
[1755735743311,4.13895341,187.6,187.58,0.03]
[1755735743624,4.85895341,187.6,187.58,0.03]
[1755735744123,41.85895341,187.59,187.58,0.03]
[1755735744310,42.57895341,187.59,187.58,0.03]
[1755735746004,41.85895341,187.59,187.58,0.03]
[1755735750332,56.31670899,187.59,187.58,0.03]
[1755735750921,60.4556624,187.59,187.58,0.03]
[1755735751749,60.73998554,187.59,187.58,0.03]
[1755735752529,39.73775558,187.57,187.56,0.03]
[1755735752831,81.59670899,187.57,187.56,0.03]
[1755735753007,82.31670899,187.57,187.56,0.03]
[1755735753733,82.60103213,187.57,187.56,0.03]
[1755735754842,84.73898313,187.57,187.56,0.03]
[1755735760819,88.87793654,187.57,187.56,0.03]
[1755735762748,51.15793654,187.57,187.56,0.03]
[1755735763263,88.89793654,187.57,187.56,0.03]
[1755735764550,88.89793654,187.57,187.54,0.03]
[1755735764551,14.02207872,187.56,187.54,0.03]
[1755735764752,39.73775558,187.53,187.52,0.03]
[1755735764946,86.03998554,187.53,187.52,0.03]
[1755735765147,86.75998554,187.53,187.52,0.03]
[1755735765333,14.02207872,187.52,187.5,0.03]
[1755735765518,55.61670899,187.51,187.5,0.03]
[1755735765723,56.33670899,187.51,187.5,0.03]
[1755735766038,58.47523199,187.51,187.5,0.03]
[1755735766940,58.75955513,187.51,187.5,0.03]
[1755735767159,62.89850854,187.51,187.49,0.03]
[1755735767453,39.73775558,187.5,187.49,0.03]
[1755735767658,77.47775558,187.5,187.49,0.03]
[1755735767842,87.8943004,187.5,187.49,0.03]
[1755735770567,85.7556624,187.5,187.49,0.03]
[1755735774036,85.7556624,187.5,187.49,0.74]
[1755735774367,85.7556624,187.5,187.49,0.03]
[1755735777167,48.0156624,187.5,187.49,0.03]
[1755735777327,85.7556624,187.5,187.49,0.03]
[1755735780235,85.7556624,187.5,187.49,0.74]
[1755735780661,85.7556624,187.5,187.49,0.03]
[1755735781449,77.47775558,187.5,187.49,0.03]
[1755735781659,85.7556624,187.5,187.49,0.03]
[1755735781846,48.0156624,187.5,187.49,0.03]
[1755735782057,85.7556624,187.5,187.49,0.03]
[1755735782771,39.73775558,187.5,187.49,0.74]
[1755735782961,85.7556624,187.5,187.49,0.74]
[1755735783262,85.7556624,187.5,187.49,0.03]
[1755735783263,60.74998554,187.5,187.49,0.03]
[1755735783433,39.73775558,187.48,187.47,0.03]
[1755735783640,85.7956624,187.48,187.47,0.03]
[1755735783934,86.5056624,187.48,187.47,0.03]
[1755735786543,39.59559401,187.48,187.47,0.74]
[1755735786748,81.51454742,187.48,187.47,0.74]
[1755735788274,81.65670899,187.48,187.47,0.74]
[1755735789172,77.51775558,187.48,187.47,0.74]
[1755735789480,81.65670899,187.48,187.47,0.74]
[1755735790483,81.65670899,187.48,187.47,0.03]
[1755735790876,77.51775558,187.48,187.47,0.03]
[1755735791169,77.51775558,187.48,187.47,0.74]
[1755735791368,81.65670899,187.48,187.47,0.03]
[1755735791672,77.51775558,187.48,187.47,0.03]
[1755735791880,86.5056624,187.48,187.47,0.03]
[1755735792057,39.73775558,187.48,187.47,0.03]
[1755735792261,77.61775558,187.48,187.47,0.74]
[1755735792476,81.75670899,187.48,187.47,0.74]
[1755735793169,81.75670899,187.48,187.47,0.03]
[1755735793368,86.6056624,187.48,187.47,0.03]
[1755735794457,43.87670899,187.48,187.47,0.03]
[1755735794662,81.75670899,187.48,187.47,0.03]
[1755735795674,81.75670899,187.48,187.47,0.74]
[1755735796753,51.47559401,187.48,187.47,0.74]
[1755735796977,37.88,187.48,187.47,0.74]
[1755735797372,42.01895341,187.48,187.47,0.74]
[1755735797759,37.88,187.48,187.47,0.74]
[1755735798406,55.75670899,187.48,187.47,0.74]
[1755735798562,55.75670899,187.48,187.47,0.03]
[1755735798761,55.75670899,187.48,187.47,0.74]
[1755735799180,55.75670899,187.48,187.47,0.03]
[1755735799585,13.73775558,187.48,187.47,0.74]
[1755735799757,55.63454742,187.48,187.47,0.74]
[1755735803666,37.9,187.48,187.47,0.74]
[1755735803868,37.9,187.48,187.47,4.87895341]
[1755735804183,38.0,187.5,187.47,10.21314021]
[1755735804481,38.0,187.5,187.49,4.13895341]
[1755735804687,38.0,187.5,187.49,4.82895341]
[1755735805984,0.06,187.5,187.49,10.1625712]
[1755735808279,0.06,187.5,187.49,14.58584775]
[1755735812777,0.06,187.5,187.49,40.58584775]
[1755735816971,0.06,187.5,187.49,32.30794093]
[1755735817473,0.06,187.5,187.49,40.58584775]
[1755735818482,0.06,187.5,187.49,120.38584775]
[1755735824490,0.06,187.5,187.49,158.30584775]
[1755735825607,0.06,187.54,187.52,26.0]
[1755735825806,0.06,187.54,187.53,8.56222996]
[1755735826013,0.06,187.54,187.53,5.11327655]
[1755735826491,0.06,187.54,187.53,43.05327655]
[1755735826886,0.06,187.54,187.53,52.52471009]
[1755735830389,0.06,187.54,187.53,132.32471009]
[1755735830784,0.06,187.54,187.53,136.64263731]
[1755735831508,0.06,187.55,187.53,136.78479888]
[1755735831720,1e-08,187.55,187.54,4.56543812]
[1755735831887,0.06,187.6,187.54,8.70439153]
[1755735832082,0.06,187.6,187.59,4.13895341]
[1755735832501,0.06,187.6,187.59,4.42327655]
[1755735832905,0.06,187.6,187.59,8.56222996]